fUST/lending_fUST_20240110
["ID","MTS","AMOUNT","RATE_DAILY","PERIOD"]
[311072747,1704894639573,-225.76800306,0.00027397,2]
[311072748,1704894639581,-500.0,0.00027397,2]
[311072749,1704894639590,-500.0,0.00027397,2]
[311072750,1704894639600,-430.17463037,0.00027397,2]
[311072751,1704894639609,-500.0,0.00027397,2]
[311072752,1704894639618,-500.0,0.00027397,2]
[311072753,1704894639627,-500.0,0.00027397,2]
[311072754,1704894639636,-500.0,0.00027397,2]
[311072755,1704894639645,-500.0,0.00027397,2]
[311072756,1704894639655,-200.0752019,0.00027397,2]
[311072757,1704894639664,-500.0,0.00027397,2]
[311072758,1704894639673,-500.0,0.00027397,2]
[311072759,1704894639682,-501.04881179,0.00027397,2]
[311072760,1704894639691,-500.0,0.00027397,2]
[311072761,1704894639701,-500.0,0.00027397,2]
[311072762,1704894639710,-478.65462897,0.00027397,2]
[311072763,1704894639729,-187.25699508,0.00027397,2]
[311072764,1704894639741,-500.0,0.00027397,2]
[311072765,1704894639751,-500.0,0.00027397,2]
[311072766,1704894639763,-523.02602725,0.00027397,2]
[311072767,1704894639772,-500.0,0.00027397,2]
[311072768,1704894639783,-500.0,0.00027397,2]
[311072769,1704894639793,-500.0,0.00027397,2]
[311072770,1704894639802,-500.0,0.00027397,2]
[311072771,1704894639812,-500.0,0.00027397,2]
[311072772,1704894639822,-401.13545937,0.00027397,2]
[311072773,1704894639831,-500.0,0.00027397,2]
[311072774,1704894639841,-508.85531756,0.00027397,2]
[311072775,1704894639852,-500.0,0.00027397,2]
[311072776,1704894639863,-500.0,0.00027397,2]
[311072777,1704894639873,-500.0,0.00027397,2]
[311072778,1704894639882,-500.0,0.00027397,2]
[311072779,1704894639892,-472.11280289,0.00027397,2]
[311072780,1704894639901,-500.0,0.00027397,2]
[311072781,1704894639911,-557.54,0.00027397,2]
[311072782,1704894639920,-500.0,0.00027397,2]
[311072783,1704894639929,-594.44,0.00027397,2]
[311072784,1704894639939,-500.0,0.00027397,2]
[311072785,1704894639949,-500.0,0.00027397,2]
[311072786,1704894639958,-500.0,0.00027397,2]
[311072787,1704894639967,-500.0,0.00027397,2]
[311072788,1704894639976,-500.0,0.00027397,2]
[311072789,1704894639986,-500.0,0.00027397,2]
[311072790,1704894639995,-500.0,0.00027397,2]
[311072791,1704894640005,-500.0,0.00027397,2]
[311072792,1704894640015,-442.3272029,0.00027397,2]
[311072793,1704894640025,-253.12364064,0.00027397,2]
[311072794,1704894640034,-500.0,0.00027397,2]
[311072795,1704894640044,-500.0,0.00027397,2]
[311072796,1704894640053,-500.0,0.00027397,2]
[311072797,1704894640063,-591.49970872,0.00027397,2]
[311072798,1704894640072,-500.0,0.00027397,2]
[311072799,1704894640082,-500.0,0.00027397,2]
[311072800,1704894640091,-501.06684635,0.00027397,2]
[311072801,1704894640100,-512.9131261,0.00027397,2]
[311072802,1704894640110,-435.36733116,0.00027397,2]
[311072803,1704894640120,-500.0,0.00027397,2]
[311072804,1704894640130,-500.0,0.00027397,2]
[311072805,1704894640139,-500.0,0.00027397,2]
[311072806,1704894640149,-500.0,0.00027397,2]
[311072807,1704894640158,-500.0,0.00027397,2]
[311072808,1704894640168,-500.0,0.00027397,2]
[311072809,1704894640178,-502.01303904,0.00027397,2]
[311072810,1704894640187,-503.36193433,0.00027397,2]
[311072811,1704894640196,-346.47463783,0.00027397,2]
[311072812,1704894640206,-500.0,0.00027397,2]
[311072813,1704894640215,-309.91038177,0.00027397,5]
[311072814,1704894640225,-500.0,0.00027397,2]
[311072815,1704894640235,-500.0,0.00027397,2]
[311072816,1704894640245,-500.0,0.00027397,2]
[311072817,1704894640255,-531.11014016,0.00027397,2]
[311072818,1704894640264,-500.0,0.00027397,2]
[311072819,1704894640273,-500.0,0.00027397,2]
[311072820,1704894640282,-500.0,0.00027397,2]
[311072821,1704894640292,-511.80129055,0.00027397,2]
[311072822,1704894640302,-500.0,0.00027397,2]
[311072823,1704894640311,-518.16759048,0.00027397,2]
[311072824,1704894640321,-1000.0,0.00027397,2]
[311072825,1704894640330,-500.0,0.00027397,2]
[311072827,1704894640339,-500.0,0.00027397,2]
[311072829,1704894640349,-514.37643462,0.00027397,2]
[311072830,1704894640358,-500.0,0.00027397,2]
[311072831,1704894640368,-506.40633693,0.00027397,2]
[311072832,1704894640377,-506.69016372,0.00027397,2]
[311072833,1704894640387,-427.08821548,0.00027397,2]
[311072835,1704894640396,-500.0,0.00027397,2]
[311072836,1704894640405,-500.0,0.00027397,2]
[311072838,1704894640415,-527.21271177,0.00027397,2]
[311072840,1704894640425,-299.50245497,0.00027397,2]
[311072842,1704894640434,-502.26684622,0.00027397,2]
[311072843,1704894640444,-501.07900066,0.00027397,2]
[311072844,1704894640453,-500.0,0.00027397,2]
[311072845,1704894640462,-583.55441806,0.00027397,2]
[311072846,1704894640472,-502.11672008,0.00027397,2]
[311072847,1704894640481,-500.0,0.00027397,2]
[311072848,1704894640490,-618.34356091,0.00027397,2]
[311072850,1704894640499,-500.0,0.00027397,2]
[311072851,1704894640510,-500.0,0.00027397,2]
[311072853,1704894640520,-500.0,0.00027397,2]
[311072855,1704894640529,-500.0,0.00027397,2]
[311072857,1704894640537,-500.0,0.00027397,2]
[311072859,1704894640546,-500.0,0.00027397,2]
[311072860,1704894640556,-500.0,0.00027397,2]
[311072861,1704894640565,-500.0,0.00027397,2]
[311072863,1704894640575,-500.0,0.00027397,2]
[311072864,1704894640584,-504.32486855,0.00027397,2]
[311072865,1704894640593,-500.0,0.00027397,2]
[311072866,1704894640603,-500.0,0.00027397,2]
[311072868,1704894640612,-622.52291457,0.00027397,2]
[311072869,1704894640621,-517.26329887,0.00027397,2]
[311072870,1704894640630,-528.30713892,0.00027397,2]
[311072871,1704894640639,-500.0,0.00027397,2]
[311072872,1704894640649,-500.0,0.00027397,2]
[311072873,1704894640658,-500.0,0.00027397,2]
[311072874,1704894640667,-500.0,0.00027397,2]
[311072876,1704894640676,-500.0,0.00027397,2]
[311072877,1704894640686,-500.0,0.00027397,2]
[311072878,1704894640695,-500.0,0.00027397,2]
[311072879,1704894640704,-500.0,0.00027397,2]
[311072880,1704894640714,-500.0,0.00027397,2]
[311072881,1704894640722,-500.0,0.00027397,2]
[311072882,1704894640732,-500.0,0.00027397,2]
[311072883,1704894640741,-640.6115956,0.00027397,2]
[311072884,1704894640750,-502.17596394,0.00027397,2]
[311072885,1704894640761,-249.06598029,0.00027397,2]
[311072886,1704894640770,-500.0,0.00027397,2]
[311072887,1704894640779,-500.0,0.00027397,2]
[311072888,1704894640789,-505.80729413,0.00027397,2]
[311072889,1704894640798,-500.0,0.00027397,2]
[311072890,1704894640807,-500.0,0.00027397,2]
[311072891,1704894640816,-500.0,0.00027397,2]
[311072892,1704894640826,-500.0,0.00027397,2]
[311072893,1704894640835,-500.0,0.00027397,2]
[311072894,1704894640845,-500.0,0.00027397,2]
[311072895,1704894640857,-506.77755744,0.00027397,2]
[311072896,1704894640867,-500.0,0.00027397,2]
[311072897,1704894640877,-564.2020707,0.00027397,2]
[311072898,1704894640886,-500.0,0.00027397,2]
[311072899,1704894640896,-501.04927739,0.00027397,2]
[311072900,1704894640905,-20035.59365478,0.00027397,10]
[311072901,1704894640915,-500.0,0.00027397,2]
[311072902,1704894640925,-500.0,0.00027397,2]
[311072903,1704894640934,-516.84449583,0.00027397,2]
[311072904,1704894640944,-500.0,0.00027397,2]
[311072905,1704894640953,-500.0,0.00027397,2]
[311072906,1704894640963,-585.62,0.00027397,2]
[311072907,1704894640973,-500.0,0.00027397,2]
[311072908,1704894640984,-500.0,0.00027397,2]
[311072909,1704894640994,-280.82442565,0.00027397,2]
[311072910,1704894641005,-500.0,0.00027397,2]
[311072911,1704894641016,-500.0,0.00027397,2]
[311072912,1704894641026,-513.71200264,0.00027397,2]
[311072913,1704894641036,-500.0,0.00027397,2]
[311072914,1704894641046,-500.0,0.00027397,2]
[311072915,1704894641056,-500.0,0.00027397,2]
[311072916,1704894641065,-500.0,0.00027397,2]
[311072917,1704894641075,-500.0,0.00027397,2]
[311072918,1704894641084,-510.95368525,0.00027397,2]
[311072919,1704894641094,-500.0,0.00027397,2]
[311072920,1704894641104,-500.0,0.00027397,2]
[311072921,1704894641113,-500.0,0.00027397,2]
[311072922,1704894641123,-249.92021322,0.00027397,2]
[311072923,1704894641133,-1521.94,0.00027397,2]
[311072924,1704894641143,-500.0,0.00027397,2]
[311072925,1704894641152,-500.0,0.00027397,2]
[311072926,1704894641162,-514.3550013,0.00027397,2]
[311072927,1704894641171,-500.0,0.00027397,5]
[311072928,1704894641181,-504.58103313,0.00027397,2]
[311072929,1704894641191,-500.0,0.00027397,2]
[311072930,1704894641200,-502.61811935,0.00027397,2]
[311072931,1704894641209,-504.44121081,0.00027397,2]
[311072933,1704894641219,-507.45117535,0.00027397,2]
[311072934,1704894641229,-579.01830516,0.00027397,2]
[311072935,1704894641238,-500.0,0.00027397,2]
[311072936,1704894641248,-500.0,0.00027397,2]
[311072937,1704894641259,-500.0,0.00027397,2]
[311072938,1704894641269,-500.0,0.00027397,2]
[311072939,1704894641279,-344.67141677,0.00027397,2]
[311072940,1704894641289,-500.0,0.00027397,2]
[311072941,1704894641298,-500.0,0.00027397,2]
[311072942,1704894641307,-500.0,0.00027397,2]
[311072943,1704894641317,-500.0,0.00027397,2]
[311072944,1704894641326,-500.0,0.00027397,2]
[311072945,1704894641335,-500.0,0.00027397,2]
[311072946,1704894641345,-500.0,0.00027397,2]
[311072947,1704894641354,-528.35091218,0.00027397,2]
[311072948,1704894641363,-500.0,0.00027397,2]
[311072949,1704894641374,-306.05689635,0.00027397,2]
[311072950,1704894641383,-500.0,0.00027397,2]
[311072951,1704894641392,-549.9269643,0.00027397,2]
[311072952,1704894641402,-500.0,0.00027397,2]
[311072953,1704894641412,-500.0,0.00027397,2]
[311072954,1704894641421,-500.0,0.00027397,2]
[311072955,1704894641431,-506.78592905,0.00027397,2]
[311072956,1704894641440,-168.28933158,0.00027397,2]
[311072957,1704894641450,-500.0,0.00027397,2]
[311072958,1704894641459,-539.80198278,0.00027397,2]
[311072959,1704894641469,-500.0,0.00027397,2]
[311072960,1704894641478,-500.0,0.00027397,2]
[311072961,1704894641488,-500.0,0.00027397,2]
[311072962,1704894641497,-500.0,0.00027397,2]
[311072963,1704894641507,-500.0,0.00027397,2]
[311072964,1704894641517,-501.90273773,0.00027397,2]
[311072965,1704894641528,-500.0,0.00027397,2]
[311072966,1704894641537,-500.0,0.00027397,2]
[311072967,1704894641546,-500.0,0.00027397,2]
[311072968,1704894641558,-500.0,0.00027397,2]
[311072969,1704894641568,-500.0,0.00027397,2]
[311072970,1704894641578,-500.0,0.00027397,2]
[311072971,1704894641587,-500.0,0.00027397,2]
[311072972,1704894641597,-500.0,0.00027397,2]
[311072973,1704894641606,-550.94839006,0.00027397,2]
[311072974,1704894641615,-500.0,0.00027397,2]
[311072975,1704894641625,-500.0,0.00027397,2]
[311072976,1704894641635,-614.65,0.00027397,2]
[311072977,1704894641645,-500.0,0.00027397,2]
[311072978,1704894641655,-500.0,0.00027397,2]
[311072979,1704894641664,-500.0,0.00027397,2]
[311072980,1704894641674,-500.0,0.00027397,2]
[311072981,1704894641684,-500.0,0.00027397,2]
[311072982,1704894641805,-341.20169996,0.00027397,2]
[311072983,1704894641815,-688.88,0.00027397,2]
[311072984,1704894641824,-500.0,0.00027397,2]
[311072985,1704894641834,-500.0,0.00027397,2]
[311072986,1704894641844,-500.88349199,0.00027397,2]
[311072987,1704894641856,-500.0,0.00027397,2]
[311072988,1704894641865,-500.0,0.00027397,2]
[311072989,1704894641874,-500.0,0.00027397,2]
[311072990,1704894641884,-504.54609046,0.00027397,2]
[311072991,1704894641893,-500.0,0.00027397,2]
[311072992,1704894641902,-500.0,0.00027397,2]
[311072993,1704894641911,-1201.75,0.00027397,2]
[311072994,1704894641920,-500.0,0.00027397,2]
[311072995,1704894641929,-500.0,0.00027397,2]
[311072996,1704894641939,-500.0,0.00027397,2]
[311072997,1704894641948,-500.2761618,0.00027397,2]
[311072998,1704894641957,-8881.87,0.00027397,2]
[311072999,1704894641966,-521.54620281,0.00027397,2]
[311073000,1704894641976,-500.0,0.00027397,2]
[311073001,1704894641986,-528.39,0.00027397,2]
[311073002,1704894641995,-500.0,0.00027397,2]
[311073003,1704894642004,-500.0,0.00027397,2]
[311073004,1704894642014,-529.7296941,0.00027397,2]
[311073005,1704894642023,-500.0,0.00027397,2]
[311073006,1704894642032,-500.0,0.00027397,2]
[311073007,1704894642042,-500.0,0.00027397,2]
[311073008,1704894642052,-500.0,0.00027397,2]
[311073009,1704894642061,-500.0,0.00027397,2]
[311073010,1704894642071,-500.0,0.00027397,2]
[311073011,1704894642080,-500.0,0.00027397,2]
[311073012,1704894642090,-500.0,0.00027397,2]
[311073013,1704894642099,-500.0,0.00027397,2]
[311073014,1704894642109,-500.0,0.00027397,2]
[311073015,1704894642119,-500.0,0.00027397,2]
[311073016,1704894642129,-500.0,0.00027397,2]
[311073017,1704894642138,-500.0,0.00027397,2]
[311073018,1704894642147,-500.0,0.00027397,2]
[311073019,1704894642157,-500.0,0.00027397,2]
[311073020,1704894642166,-500.0,0.00027397,2]
[311073021,1704894642176,-500.0,0.00027397,2]
[311073022,1704894642185,-500.0,0.00027397,2]
[311073023,1704894642195,-500.0,0.00027397,2]
[311073024,1704894642204,-501.51719285,0.00027397,2]
[311073025,1704894642213,-500.0,0.00027397,2]
[311073026,1704894642223,-500.0,0.00027397,2]
[311073027,1704894642232,-500.0,0.00027397,2]
[311073028,1704894642244,-500.0,0.00027397,2]
[311073029,1704894642255,-500.0,0.00027397,2]
[311073030,1704894642265,-500.0,0.00027397,2]
[311073031,1704894642274,-500.0,0.00027397,2]
[311073032,1704894642285,-500.0,0.00027397,2]
[311073033,1704894642294,-500.0,0.00027397,2]
[311073034,1704894642304,-500.0,0.00027397,2]
[311073035,1704894642314,-500.0,0.00027397,2]
[311073036,1704894642323,-500.0,0.00027397,2]
[311073037,1704894642333,-500.0,0.00027397,2]
[311073038,1704894642342,-500.0,0.00027397,2]
[311073039,1704894642352,-500.0,0.00027397,2]
[311073040,1704894642362,-500.0,0.00027397,2]
[311073041,1704894642371,-500.0,0.00027397,2]
[311073042,1704894642381,-500.0,0.00027397,2]
[311073043,1704894642390,-500.0,0.00027397,2]
[311073044,1704894642399,-500.0,0.00027397,2]
[311073045,1704894642409,-500.0,0.00027397,2]
[311073046,1704894642418,-600.0,0.00027397,2]
[311073047,1704894642429,-500.0,0.00027397,2]
[311073048,1704894642439,-500.0,0.00027397,2]
[311073049,1704894642448,-500.0,0.00027397,2]
[311073050,1704894642457,-6769.86,0.00027397,2]
[311073051,1704894642467,-500.0,0.00027397,2]
[311073052,1704894642476,-500.0,0.00027397,2]
[311073053,1704894642486,-500.0,0.00027397,2]
[311073054,1704894642496,-500.0,0.00027397,2]
[311073055,1704894642506,-1310.44,0.00027397,2]
[311073056,1704894642516,-500.0,0.00027397,2]
[311073057,1704894642526,-500.0,0.00027397,2]
[311073058,1704894642536,-500.0,0.00027397,2]
[311073059,1704894642545,-500.0,0.00027397,2]
[311073060,1704894642555,-514.25687398,0.00027397,2]
[311073061,1704894642565,-500.0,0.00027397,2]
[311073062,1704894642576,-500.0,0.00027397,2]
[311073063,1704894642586,-500.0,0.00027397,2]
[311073064,1704894642596,-500.0,0.00027397,2]
[311073065,1704894642606,-500.52115272,0.00027397,2]
[311073066,1704894642616,-500.0,0.00027397,2]
[311073067,1704894642627,-500.0,0.00027397,2]
[311073068,1704894642637,-500.0,0.00027397,2]
[311073069,1704894642647,-500.0,0.00027397,2]
[311073070,1704894642658,-500.0,0.00027397,2]
[311073071,1704894642669,-155.0,0.00027397,2]
[311073072,1704894642679,-500.0,0.00027397,2]
[311073073,1704894642689,-500.0,0.00027397,2]
[311073074,1704894642699,-500.0,0.00027397,2]
[311073075,1704894642709,-500.0,0.00027397,2]
[311073076,1704894642719,-185.80771542,0.00027397,2]
[311073077,1704894642728,-500.0,0.00027397,2]
[311073078,1704894642738,-500.0,0.00027397,2]
[311073079,1704894642749,-500.0,0.00027397,2]
[311073080,1704894642761,-566.50649754,0.00027397,2]
[311073081,1704894642770,-500.0,0.00027397,2]
[311073082,1704894642780,-500.0,0.00027397,2]
[311073083,1704894642791,-500.0,0.00027397,2]
[311073084,1704894642802,-500.0,0.00027397,2]
[311073085,1704894642813,-500.0,0.00027397,2]
[311073086,1704894642823,-500.0,0.00027397,2]
[311073087,1704894642833,-500.0,0.00027397,2]
[311073088,1704894642843,-500.0,0.00027397,2]
[311073089,1704894642853,-500.0,0.00027397,2]
[311073090,1704894642864,-500.0,0.00027397,2]
[311073091,1704894642873,-500.0,0.00027397,2]
[311073092,1704894642882,-221.4979437,0.00027397,2]
[311073093,1704894642892,-500.0,0.00027397,2]
[311073094,1704894642903,-500.0,0.00027397,2]
[311073095,1704894642912,-500.0,0.00027397,2]
[311073096,1704894642922,-500.0,0.00027397,2]
[311073097,1704894642932,-500.69887114,0.00027397,2]
[311073098,1704894642941,-500.0,0.00027397,2]
[311073099,1704894642951,-500.0,0.00027397,2]
[311073100,1704894642960,-500.0,0.00027397,2]
[311073101,1704894642970,-500.0,0.00027397,2]
[311073102,1704894642979,-500.36944473,0.00027397,2]
[311073103,1704894642989,-500.0,0.00027397,2]
[311073104,1704894642998,-1258.98,0.00027397,2]
[311073105,1704894643008,-500.0,0.00027397,2]
[311073106,1704894643018,-500.0,0.00027397,2]
[311073107,1704894643027,-6610.91,0.00027397,2]
[311073108,1704894643037,-500.0,0.00027397,2]
[311073109,1704894643046,-500.0,0.00027397,2]
[311073110,1704894643056,-500.0,0.00027397,2]
[311073111,1704894643065,-500.0,0.00027397,2]
[311073113,1704894643075,-500.0,0.00027397,2]
[311073115,1704894643084,-500.0,0.00027397,2]
[311073117,1704894643093,-503.59279333,0.00027397,2]
[311073118,1704894643102,-1479.71,0.00027397,2]
[311073119,1704894643112,-294.44703932,0.00027397,2]
[311073120,1704894643122,-500.0,0.00027397,2]
[311073121,1704894643131,-502.2899914,0.00027397,2]
[311073122,1704894643140,-896.24,0.00027397,2]
[311073123,1704894643149,-500.60072628,0.00027397,2]
[311073124,1704894643159,-500.0,0.00027397,2]
[311073125,1704894643168,-200.0,0.00027397,2]
[311073126,1704894643178,-2036.1843984,0.00027398,3]
[311073127,1704894643188,-18048.68086283,0.00027398,3]
[311073128,1704894643197,-2899.15331775,0.00027398,3]
[311073129,1704894643206,-12600.60631032,0.00027398,3]
[311073130,1704894643216,-500.0,0.0002757,2]
[311073131,1704894643225,-2000.0,0.000276,2]
[311073132,1704894643235,-2000.0,0.0002761,2]
[311073133,1704894643245,-2000.0,0.0002762,2]
[311073134,1704894643257,-2000.0,0.0002763,2]
[311073135,1704894643266,-2000.0,0.0002764,2]
[311073136,1704894643276,-2000.0,0.0002765,2]
[311073137,1704894643286,-86076.98850351,0.00027659,2]
[311073139,1704894643314,-26172.84994615,0.00027659,2]
[311073140,1704894643325,-451.21,0.00027659,2]
[311073141,1704894643341,-9611.75130745,0.00027659,2]
[311073142,1704894643350,-2000.0,0.0002766,2]
[311073143,1704894643360,-500.0,0.00027669,2]
[311073145,1704894643369,-2000.0,0.0002767,2]
[311073146,1704894643378,-500.0,0.0002767,2]
[311073147,1704894643387,-500.0,0.0002767,2]
[311073148,1704894643396,-500.0,0.0002767,2]
[311073149,1704894643405,-500.0,0.0002767,2]
[311073150,1704894643414,-500.0,0.0002767,4]
[311073152,1704894643423,-500.0,0.0002767,4]
[311073153,1704894643432,-171.12396,0.0002767,4]
[311073154,1704894643441,-201.58712271,0.0002767,4]
[311073155,1704894643450,-523.50052864,0.0002767,4]
[311073156,1704894643459,-185.46934315,0.0002767,4]
[311073157,1704894643468,-500.0,0.0002767,4]
[311073158,1704894643478,-475.2250497,0.0002767,4]
[311073159,1704894643487,-500.0,0.0002767,4]
[311073160,1704894643498,-500.0,0.00027671,2]
[311073161,1704894643508,-500.0,0.00027671,2]
[311073162,1704894643517,-356.33341781,0.00027671,2]
[311073163,1704894643526,-500.0,0.00027671,2]
[311073165,1704894643536,-500.0,0.00027671,2]
[311073167,1704894643545,-500.0,0.00027671,2]
[311073169,1704894643554,-500.0,0.00027671,2]
[311073170,1704894643563,-500.0,0.00027671,2]
[311073171,1704894643572,-500.0,0.00027671,2]
[311073172,1704894643581,-500.0,0.00027671,2]
[311073173,1704894643590,-500.0,0.00027671,2]
[311073175,1704894643599,-504.89947469,0.00027671,2]
[311073177,1704894643609,-500.0,0.00027671,2]
[311073178,1704894643618,-500.0,0.00027671,2]
[311073179,1704894643627,-500.0,0.00027671,2]
[311073180,1704894643636,-500.0,0.00027671,2]
[311073181,1704894643646,-500.0,0.00027671,2]
[311073182,1704894643654,-420.13288424,0.00027671,2]
[311073183,1704894643663,-500.0,0.00027671,2]
[311073184,1704894643672,-500.0,0.00027671,2]
[311073185,1704894643681,-500.0,0.00027671,2]
[311073186,1704894643691,-500.0,0.00027671,2]
[311073187,1704894643700,-500.0,0.00027671,2]
[311073188,1704894643709,-500.0,0.00027671,2]
[311073189,1704894643718,-500.0,0.00027671,2]
[311073190,1704894643727,-500.0,0.00027671,2]
[311073191,1704894643736,-383.88957127,0.00027671,2]
[311073192,1704894643745,-500.0,0.00027671,2]
[311073193,1704894643754,-500.0,0.00027671,2]
[311073194,1704894643766,-503.09208755,0.00027671,2]
[311073195,1704894643775,-513.26199714,0.00027671,2]
[311073196,1704894643784,-500.0,0.00027671,2]
[311073197,1704894643793,-506.73928784,0.00027671,2]
[311073198,1704894643802,-500.0,0.00027671,2]
[311073199,1704894643811,-537.22173204,0.00027671,2]
[311073200,1704894643820,-500.0,0.00027671,2]
[311073201,1704894643830,-500.0,0.00027671,2]
[311073202,1704894643839,-500.0,0.00027671,2]
[311073203,1704894643848,-500.0,0.00027671,2]
[311073204,1704894643860,-500.0,0.00027671,2]
[311073205,1704894643869,-500.0,0.00027671,2]
[311073206,1704894643878,-532.33830109,0.00027671,2]
[311073207,1704894643887,-503.41865706,0.00027671,2]
[311073208,1704894643897,-352.90896704,0.00027671,2]
[311073209,1704894643906,-500.0,0.00027671,2]
[311073210,1704894643916,-500.0,0.00027671,2]
[311073211,1704894643925,-500.0,0.00027671,2]
[311073212,1704894643934,-500.0,0.00027671,2]
[311073213,1704894643943,-500.0,0.00027671,2]
[311073214,1704894643952,-500.0,0.00027671,2]
[311073215,1704894643962,-500.0,0.00027671,2]
[311073216,1704894643971,-500.0,0.00027671,2]
[311073217,1704894643980,-534.45113852,0.00027671,2]
[311073218,1704894643990,-500.0,0.00027671,2]
[311073219,1704894643999,-500.0,0.00027671,2]
[311073220,1704894644010,-500.0,0.00027671,2]
[311073221,1704894644019,-500.0,0.00027671,2]
[311073222,1704894644027,-500.0,0.00027671,2]
[311073223,1704894644037,-500.0,0.00027671,2]
[311073224,1704894644046,-1000.0,0.00027671,2]
[311073225,1704894644055,-500.0,0.00027671,2]
[311073226,1704894644064,-500.0,0.00027671,2]
[311073227,1704894644074,-500.0,0.00027671,2]
[311073228,1704894644082,-500.0,0.00027671,2]
[311073229,1704894644092,-500.0,0.00027671,2]
[311073230,1704894644102,-546.55649512,0.00027671,2]
[311073231,1704894644111,-500.0,0.00027671,2]
[311073232,1704894644120,-500.0,0.00027671,2]
[311073233,1704894644129,-500.0,0.00027671,2]
[311073234,1704894644138,-500.0,0.00027671,2]
[311073235,1704894644147,-500.0,0.00027671,2]
[311073236,1704894644156,-500.0,0.00027671,2]
[311073237,1704894644166,-500.0,0.00027671,2]
[311073238,1704894644176,-500.0,0.00027671,2]
[311073239,1704894644186,-500.0,0.00027671,2]
[311073240,1704894644195,-500.0,0.00027671,2]
[311073241,1704894644204,-500.0,0.00027671,2]
[311073242,1704894644214,-500.0,0.00027671,2]
[311073243,1704894644223,-500.0,0.00027671,2]
[311073244,1704894644233,-509.12236943,0.00027671,2]
[311073245,1704894644242,-501.39318664,0.00027671,2]
[311073246,1704894644252,-500.0,0.00027671,2]
[311073247,1704894644262,-503.00915314,0.00027671,2]
[311073248,1704894644271,-500.0,0.00027671,2]
[311073249,1704894644281,-500.0,0.00027671,2]
[311073250,1704894644291,-500.0,0.00027671,2]
[311073251,1704894644301,-500.0,0.00027671,2]
[311073252,1704894644311,-500.0,0.00027671,2]
[311073253,1704894644320,-500.0,0.00027671,2]
[311073254,1704894644329,-500.0,0.00027671,2]
[311073255,1704894644338,-500.0,0.00027671,2]
[311073256,1704894644347,-1521.94,0.00027671,2]
[311073257,1704894644356,-500.0,0.00027671,2]
[311073258,1704894644366,-500.0,0.00027671,2]
[311073259,1704894644375,-500.0,0.00027671,2]
[311073260,1704894644384,-500.0,0.00027671,2]
[311073261,1704894644394,-500.0,0.00027671,2]
[311073262,1704894644404,-419.34890934,0.00027671,2]
[311073263,1704894644413,-519.29291138,0.00027671,2]
[311073264,1704894644422,-500.0,0.00027671,2]
[311073265,1704894644431,-500.0,0.00027671,2]
[311073266,1704894644440,-500.0,0.00027671,2]
[311073267,1704894644546,-500.0,0.00027671,2]
[311073268,1704894644556,-500.0,0.00027671,2]
[311073269,1704894644565,-321.05582341,0.00027671,2]
[311073270,1704894644574,-500.0,0.00027671,2]
[311073271,1704894644584,-503.18593563,0.00027671,2]
[311073272,1704894644593,-500.0,0.00027671,2]